[Event "Titled Tuesday Blitz January 03 Early 2023"]
[White "Zohid6"]
[Black "Rodrigues, Bruno Morado"]
[BlackFideId "2115654"]
[WhiteElo "2748"]
[BlackElo "2033"]
[Result "1-0"]
[Round "02"]
[TimeControl "180+2"]
[Date "2023.01.03"]
[WhiteClock "0:00:25"]
[BlackClock "0:00:05"]

1. d4 {[%clk 0:02:41]}  d5 {[%clk 0:03:00]} 2. Nc3 {[%clk 0:02:40]}  Nf6 {[%clk 0:03:00]} 3. Bf4 {[%clk 0:02:39]}  Bf5 {[%clk 0:03:00]} 4. e3 {[%clk 0:02:38]}  e6 {[%clk 0:03:01]} 5. Nf3 {[%clk 0:02:38]}  Bd6 {[%clk 0:03:01]} 6. Ne5 {[%clk 0:02:37]}  Nbd7 {[%clk 0:02:58]} 7. g4 {[%clk 0:02:38]}  Bxe5 {[%clk 0:02:56]} 8. dxe5 {[%clk 0:02:37]}  Nxg4 {[%clk 0:02:56]} 9. h3 {[%clk 0:02:37]}  Ngxe5 {[%clk 0:02:56]} 10. Rg1 {[%clk 0:02:33]}  Qf6 {[%clk 0:02:35]} 11. Be2 {[%clk 0:02:26]}  h6 {[%clk 0:02:34]} 12. Nb5 {[%clk 0:02:22]}  O-O {[%clk 0:02:14]} 13. Nxc7 {[%clk 0:02:22]}  Rac8 {[%clk 0:02:14]} 14. Nb5 {[%clk 0:02:22]}  Bxc2 {[%clk 0:02:13]} 15. Qd2 {[%clk 0:02:20]}  Bd3 {[%clk 0:02:06]} 16. Nd4 {[%clk 0:02:13]}  Bxe2 {[%clk 0:01:55]} 17. Qxe2 {[%clk 0:02:14]}  Ng6 {[%clk 0:01:54]} 18. Bh2 {[%clk 0:02:08]}  e5 {[%clk 0:01:53]} 19. Nb3 {[%clk 0:02:06]}  d4 {[%clk 0:01:51]} 20. Bg3 {[%clk 0:01:41]}  Nh4 {[%clk 0:01:43]} 21. Bxh4 {[%clk 0:01:21]}  Qxh4 {[%clk 0:01:43]} 22. exd4 {[%clk 0:01:19]}  exd4 {[%clk 0:01:43]} 23. Qg4 {[%clk 0:01:18]}  Qxg4 {[%clk 0:01:23]} 24. Rxg4 {[%clk 0:01:17]}  d3 {[%clk 0:01:17]} 25. Rb4 {[%clk 0:01:14]}  b6 {[%clk 0:01:15]} 26. Rd1 {[%clk 0:01:08]}  Ne5 {[%clk 0:01:10]} 27. Re4 {[%clk 0:01:01]}  Nc4 {[%clk 0:00:59]} 28. Rxd3 {[%clk 0:01:00]}  Nxb2 {[%clk 0:00:56]} 29. Rd2 {[%clk 0:00:55]}  Nc4 {[%clk 0:00:55]} 30. Rd7 {[%clk 0:00:53]}  a5 {[%clk 0:00:54]} 31. Nd4 {[%clk 0:00:47]}  Rfe8 {[%clk 0:00:52]} 32. Rxe8+ {[%clk 0:00:46]}  Rxe8+ {[%clk 0:00:53]} 33. Kf1 {[%clk 0:00:44]}  Re5 {[%clk 0:00:32]} 34. Nc6 {[%clk 0:00:42]}  Rc5 {[%clk 0:00:26]} 35. Ne7+ {[%clk 0:00:39]}  Kf8 {[%clk 0:00:26]} 36. Rb7 {[%clk 0:00:24]}  Nd6 {[%clk 0:00:17]} 37. Rd7 {[%clk 0:00:23]}  Nb5 {[%clk 0:00:17]} 38. Nd5 {[%clk 0:00:23]}  g6 {[%clk 0:00:17]} 39. Nxb6 {[%clk 0:00:23]}  Rc1+ {[%clk 0:00:16]} 40. Kg2 {[%clk 0:00:23]}  Rc2 {[%clk 0:00:17]} 41. a4 {[%clk 0:00:22]}  Nc3 {[%clk 0:00:17]} 42. Nc4 {[%clk 0:00:23]}  Nxa4 {[%clk 0:00:17]} 43. Nd6 {[%clk 0:00:23]}  Rd2 {[%clk 0:00:15]} 44. Rxf7+ {[%clk 0:00:23]}  Kg8 {[%clk 0:00:16]} 45. Rf6 {[%clk 0:00:24]}  Kg7 {[%clk 0:00:16]} 46. Ne8+ {[%clk 0:00:24]}  Kh7 {[%clk 0:00:16]} 47. Ra6 {[%clk 0:00:24]}  Re2 {[%clk 0:00:14]} 48. Ra7+ {[%clk 0:00:24]}  Kh8 {[%clk 0:00:14]} 49. Nf6 {[%clk 0:00:25]}  Re7 {[%clk 0:00:05]} 1-0


[Site "https://www.chess.com"]

[Event "Titled Tuesday Blitz January 03 Early 2023"]
[White "Moreno Perez, Tobias Sebastian"]
[Black "Pakleza, Zbigniew"]
[WhiteFideId "186716"]
[BlackFideId "1119290"]
[WhiteElo "2256"]
[BlackElo "2494"]
[Result "0-1"]
[Round "02"]
[TimeControl "180+2"]
[Date "2023.01.03"]
[WhiteClock "0:00:01"]
[BlackClock "0:00:25"]

1. Nf3 {[%clk 0:03:00]}  d5 {[%clk 0:03:00]} 2. d4 {[%clk 0:02:58]}  Bf5 {[%clk 0:02:59]} 3. c4 {[%clk 0:02:56]}  e6 {[%clk 0:03:00]} 4. Nc3 {[%clk 0:02:56]}  c6 {[%clk 0:03:00]} 5. Qb3 {[%clk 0:02:53]}  Qb6 {[%clk 0:03:00]} 6. c5 {[%clk 0:02:54]}  Qc7 {[%clk 0:03:00]} 7. g3 {[%clk 0:02:52]}  Nd7 {[%clk 0:02:58]} 8. Bf4 {[%clk 0:02:53]}  Qc8 {[%clk 0:02:59]} 9. Qd1 {[%clk 0:02:46]}  h6 {[%clk 0:02:56]} 10. Bg2 {[%clk 0:02:45]}  Ngf6 {[%clk 0:02:56]} 11. O-O {[%clk 0:02:44]}  Be7 {[%clk 0:02:57]} 12. b4 {[%clk 0:02:43]}  a6 {[%clk 0:02:58]} 13. a4 {[%clk 0:02:43]}  Ne4 {[%clk 0:02:57]} 14. Qb3 {[%clk 0:02:35]}  O-O {[%clk 0:02:56]} 15. Nd2 {[%clk 0:02:32]}  Nxd2 {[%clk 0:02:56]} 16. Bxd2 {[%clk 0:02:31]}  Bf6 {[%clk 0:02:56]} 17. e3 {[%clk 0:02:25]}  e5 {[%clk 0:02:54]} 18. dxe5 {[%clk 0:02:25]}  Nxe5 {[%clk 0:02:54]} 19. Rac1 {[%clk 0:02:26]}  a5 {[%clk 0:02:48]} 20. b5 {[%clk 0:02:24]}  Nd3 {[%clk 0:02:47]} 21. Rcd1 {[%clk 0:02:14]}  Nxc5 {[%clk 0:02:47]} 22. Qa2 {[%clk 0:02:09]}  Bd3 {[%clk 0:02:30]} 23. Rfe1 {[%clk 0:02:08]}  Bc4 {[%clk 0:02:31]} 24. Qb1 {[%clk 0:02:06]}  Bxc3 {[%clk 0:01:51]} 25. Bxc3 {[%clk 0:02:06]}  Nxa4 {[%clk 0:01:52]} 26. Bxg7 {[%clk 0:01:08]}  Kxg7 {[%clk 0:01:53]} 27. Qa1+ {[%clk 0:01:08]}  Kg8 {[%clk 0:01:52]} 28. Qxa4 {[%clk 0:01:09]}  Bxb5 {[%clk 0:01:51]} 29. Qh4 {[%clk 0:01:08]}  Qe6 {[%clk 0:01:51]} 30. Rd4 {[%clk 0:01:07]}  f5 {[%clk 0:01:40]} 31. Rb1 {[%clk 0:00:59]}  Qf6 {[%clk 0:01:14]} 32. Qh3 {[%clk 0:00:59]}  Ba6 {[%clk 0:01:11]} 33. Rb6 {[%clk 0:00:55]}  Qg7 {[%clk 0:00:50]} 34. Rh4 {[%clk 0:00:37]}  Qa1+ {[%clk 0:00:47]} 35. Bf1 {[%clk 0:00:37]}  Qxf1+ {[%clk 0:00:48]} 36. Qxf1 {[%clk 0:00:36]}  Bxf1 {[%clk 0:00:49]} 37. Kxf1 {[%clk 0:00:37]}  Rf7 {[%clk 0:00:41]} 38. Rxh6 {[%clk 0:00:25]}  a4 {[%clk 0:00:42]} 39. Rh4 {[%clk 0:00:21]}  a3 {[%clk 0:00:40]} 40. Rb1 {[%clk 0:00:22]}  b5 {[%clk 0:00:37]} 41. Rhb4 {[%clk 0:00:21]}  Rfa7 {[%clk 0:00:32]} 42. Ra1 {[%clk 0:00:20]}  Ra4 {[%clk 0:00:32]} 43. Rb3 {[%clk 0:00:20]}  b4 {[%clk 0:00:31]} 44. Rd3 {[%clk 0:00:17]}  c5 {[%clk 0:00:28]} 45. Rxd5 {[%clk 0:00:16]}  b3 {[%clk 0:00:28]} 46. Rxf5 {[%clk 0:00:13]}  b2 {[%clk 0:00:29]} 47. Rd1 {[%clk 0:00:13]}  a2 {[%clk 0:00:26]} 48. Rg5+ {[%clk 0:00:11]}  Kf7 {[%clk 0:00:26]} 49. Kg2 {[%clk 0:00:02]}  b1=Q {[%clk 0:00:25]} 50. Rdd5 {[%clk 0:00:01]}  Qe4+ {[%clk 0:00:24]} 51. f3 {[%clk 0:00:01]}  Qxd5 {[%clk 0:00:25]} 0-1


[Site "https://www.chess.com"]

[Event "Titled Tuesday Blitz January 03 Early 2023"]
[White "Mazurkiewicz, Michal"]
[Black "Ardelean, George-Catalin"]
[WhiteFideId "1124943"]
[BlackFideId "1207091"]
[WhiteElo "2145"]
[BlackElo "2470"]
[Result "0-1"]
[Round "02"]
[TimeControl "180+2"]
[Date "2023.01.03"]
[WhiteClock "0:00:03"]
[BlackClock "0:01:38"]

1. e4 {[%clk 0:03:00]}  d5 {[%clk 0:02:55]} 2. exd5 {[%clk 0:03:00]}  Qxd5 {[%clk 0:02:56]} 3. d3 {[%clk 0:03:01]}  Nc6 {[%clk 0:02:54]} 4. Nc3 {[%clk 0:03:01]}  Qd6 {[%clk 0:02:52]} 5. g3 {[%clk 0:03:01]}  Nf6 {[%clk 0:02:50]} 6. Nf3 {[%clk 0:03:00]}  Bg4 {[%clk 0:02:50]} 7. h3 {[%clk 0:03:00]}  Bh5 {[%clk 0:02:26]} 8. Bg2 {[%clk 0:03:00]}  e6 {[%clk 0:02:22]} 9. O-O {[%clk 0:03:00]}  Be7 {[%clk 0:02:22]} 10. Bf4 {[%clk 0:02:54]}  Qd7 {[%clk 0:02:21]} 11. g4 {[%clk 0:02:20]}  Bg6 {[%clk 0:02:21]} 12. Ne5 {[%clk 0:02:21]}  Nxe5 {[%clk 0:02:20]} 13. Bxe5 {[%clk 0:02:22]}  c6 {[%clk 0:02:16]} 14. f4 {[%clk 0:02:16]}  h5 {[%clk 0:02:11]} 15. Qf3 {[%clk 0:01:38]}  hxg4 {[%clk 0:02:10]} 16. hxg4 {[%clk 0:01:39]}  O-O-O {[%clk 0:02:04]} 17. d4 {[%clk 0:01:10]}  Rh4 {[%clk 0:01:57]} 18. g5 {[%clk 0:00:27]}  Ng4 {[%clk 0:01:55]} 19. Qg3 {[%clk 0:00:19]}  Rdh8 {[%clk 0:01:54]} 20. Bxg7 {[%clk 0:00:16]}  R8h7 {[%clk 0:01:54]} 21. Be5 {[%clk 0:00:16]}  Nxe5 {[%clk 0:01:50]} 22. dxe5 {[%clk 0:00:17]}  Bc5+ {[%clk 0:01:49]} 23. Rf2 {[%clk 0:00:17]}  Qd4 {[%clk 0:01:44]} 24. Rf1 {[%clk 0:00:12]}  Rxf4 {[%clk 0:01:43]} 25. Ne2 {[%clk 0:00:10]}  Qxf2+ {[%clk 0:01:40]} 26. Rxf2 {[%clk 0:00:05]}  Bxf2+ {[%clk 0:01:40]} 27. Qxf2 {[%clk 0:00:05]}  Rxf2 {[%clk 0:01:41]} 28. Kxf2 {[%clk 0:00:06]}  Bxc2 {[%clk 0:01:41]} 29. Nf4 {[%clk 0:00:03]}  Rg7 {[%clk 0:01:39]} 30. Nh3 {[%clk 0:00:03]}  Bf5 {[%clk 0:01:38]} 31. Nf4 {[%clk 0:00:03]}  Rxg5 {[%clk 0:01:38]} 0-1


[Site "https://www.chess.com"]

[Event "Titled Tuesday Blitz January 03 Early 2023"]
[White "Gatterer, Florian"]
[Black "Starozhilov, Leonid"]
[WhiteFideId "811688"]
[BlackFideId "14106752"]
[WhiteElo "2170"]
[BlackElo "2313"]
[Result "0-1"]
[Round "02"]
[TimeControl "180+2"]
[Date "2023.01.03"]
[WhiteClock "0:00:02"]
[BlackClock "0:00:41"]

1. Nf3 {[%clk 0:03:00]}  Nf6 {[%clk 0:02:57]} 2. c4 {[%clk 0:03:00]}  g6 {[%clk 0:02:57]} 3. b3 {[%clk 0:03:00]}  Bg7 {[%clk 0:02:58]} 4. Bb2 {[%clk 0:03:00]}  O-O {[%clk 0:02:58]} 5. g3 {[%clk 0:03:01]}  b6 {[%clk 0:02:57]} 6. Bg2 {[%clk 0:03:00]}  Bb7 {[%clk 0:02:58]} 7. O-O {[%clk 0:03:00]}  e6 {[%clk 0:02:57]} 8. d3 {[%clk 0:02:48]}  c5 {[%clk 0:02:55]} 9. d4 {[%clk 0:02:41]}  Ne4 {[%clk 0:02:46]} 10. Nfd2 {[%clk 0:02:21]}  d5 {[%clk 0:02:27]} 11. Nxe4 {[%clk 0:02:13]}  dxe4 {[%clk 0:02:25]} 12. Qc2 {[%clk 0:02:09]}  Bxd4 {[%clk 0:02:16]} 13. Rd1 {[%clk 0:02:03]}  Qf6 {[%clk 0:02:12]} 14. Bxd4 {[%clk 0:01:40]}  cxd4 {[%clk 0:02:13]} 15. Nd2 {[%clk 0:01:23]}  d3 {[%clk 0:01:30]} 16. exd3 {[%clk 0:01:18]}  exd3 {[%clk 0:01:24]} 17. Qxd3 {[%clk 0:01:17]}  Bxg2 {[%clk 0:01:16]} 18. Kxg2 {[%clk 0:01:18]}  Nc6 {[%clk 0:01:15]} 19. Qd6 {[%clk 0:00:56]}  Ne5 {[%clk 0:01:04]} 20. f4 {[%clk 0:00:22]}  Ng4 {[%clk 0:00:55]} 21. Ne4 {[%clk 0:00:20]}  Qb2+ {[%clk 0:00:49]} 22. Qd2 {[%clk 0:00:12]}  Ne3+ {[%clk 0:00:47]} 23. Kf3 {[%clk 0:00:10]}  Nxd1 {[%clk 0:00:47]} 24. Rxd1 {[%clk 0:00:06]}  Qxd2 {[%clk 0:00:46]} 25. Rxd2 {[%clk 0:00:07]}  Rfd8 {[%clk 0:00:46]} 26. Re2 {[%clk 0:00:06]}  Rd3+ {[%clk 0:00:46]} 27. Kg2 {[%clk 0:00:04]}  Rad8 {[%clk 0:00:46]} 28. Kh3 {[%clk 0:00:03]}  Kg7 {[%clk 0:00:46]} 29. Kg4 {[%clk 0:00:02]}  f5+ {[%clk 0:00:41]} 30. Kg5 {[%clk 0:00:03]}  h6+ {[%clk 0:00:40]} 31. Kh4 {[%clk 0:00:03]}  fxe4 {[%clk 0:00:41]} 32. Rxe4 {[%clk 0:00:04]}  Kf6 {[%clk 0:00:42]} 33. g4 {[%clk 0:00:02]}  g5+ {[%clk 0:00:41]} 0-1


[Site "https://www.chess.com"]

[Event "Titled Tuesday Blitz January 03 Early 2023"]
[White "Cardoso Cardoso, Jose Gabriel"]
[Black "Sanchez, Robert"]
[WhiteFideId "4430492"]
[BlackFideId "2034360"]
[WhiteElo "2492"]
[BlackElo "1966"]
[Result "1-0"]
[Round "02"]
[TimeControl "180+2"]
[Date "2023.01.03"]
[WhiteClock "0:01:07"]
[BlackClock "0:01:15"]

1. Nf3 {[%clk 0:03:00]}  d5 {[%clk 0:02:59]} 2. g3 {[%clk 0:02:59]}  Nf6 {[%clk 0:02:58]} 3. Bg2 {[%clk 0:02:59]}  Bf5 {[%clk 0:02:55]} 4. O-O {[%clk 0:02:55]}  e6 {[%clk 0:02:54]} 5. c4 {[%clk 0:02:55]}  c6 {[%clk 0:02:54]} 6. cxd5 {[%clk 0:02:51]}  exd5 {[%clk 0:02:53]} 7. d3 {[%clk 0:02:42]}  Be7 {[%clk 0:02:53]} 8. Nc3 {[%clk 0:02:42]}  O-O {[%clk 0:02:53]} 9. Qc2 {[%clk 0:02:39]}  h6 {[%clk 0:02:52]} 10. e4 {[%clk 0:02:30]}  Bh7 {[%clk 0:02:47]} 11. Re1 {[%clk 0:02:22]}  Na6 {[%clk 0:02:46]} 12. a3 {[%clk 0:02:14]}  Nc5 {[%clk 0:02:44]} 13. b4 {[%clk 0:02:01]}  dxe4 {[%clk 0:02:36]} 14. dxe4 {[%clk 0:02:01]}  Qd3 {[%clk 0:02:26]} 15. Qxd3 {[%clk 0:01:35]}  Nxd3 {[%clk 0:02:27]} 16. Re3 {[%clk 0:01:35]}  Nxc1 {[%clk 0:02:24]} 17. Rxc1 {[%clk 0:01:36]}  Rad8 {[%clk 0:02:20]} 18. Bf1 {[%clk 0:01:30]}  Ng4 {[%clk 0:02:13]} 19. Ree1 {[%clk 0:01:28]}  a5 {[%clk 0:02:02]} 20. h3 {[%clk 0:01:20]}  Nf6 {[%clk 0:02:01]} 21. bxa5 {[%clk 0:01:12]}  Bxa3 {[%clk 0:02:01]} 22. Rb1 {[%clk 0:01:13]}  Rb8 {[%clk 0:01:47]} 23. Bc4 {[%clk 0:01:11]}  Rfe8 {[%clk 0:01:42]} 24. Rb3 {[%clk 0:01:09]}  Bc5 {[%clk 0:01:42]} 25. e5 {[%clk 0:01:08]}  Nd7 {[%clk 0:01:19]} 26. e6 {[%clk 0:01:07]}  Bg6 {[%clk 0:01:15]} 1-0


[Site "https://www.chess.com"]

[Event "Titled Tuesday Blitz January 03 Early 2023"]
[White "Aradhya, Garg"]
[Black "Rosenberg, Evan S"]
[WhiteFideId "25006746"]
[BlackFideId "2019299"]
[WhiteElo "2284"]
[BlackElo "1956"]
[Result "1-0"]
[Round "02"]
[TimeControl "180+2"]
[Date "2023.01.03"]
[WhiteClock "0:00:10"]
[BlackClock "0:00:01"]

1. d4 {[%clk 0:03:00]}  d5 {[%clk 0:02:59]} 2. c4 {[%clk 0:03:01]}  e6 {[%clk 0:03:00]} 3. Nc3 {[%clk 0:03:00]}  c5 {[%clk 0:03:00]} 4. e3 {[%clk 0:02:59]}  Nf6 {[%clk 0:02:59]} 5. Nf3 {[%clk 0:02:59]}  a6 {[%clk 0:02:59]} 6. cxd5 {[%clk 0:02:59]}  exd5 {[%clk 0:02:59]} 7. g3 {[%clk 0:02:57]}  c4 {[%clk 0:02:59]} 8. Bg2 {[%clk 0:02:57]}  Bb4 {[%clk 0:02:56]} 9. O-O {[%clk 0:02:55]}  O-O {[%clk 0:02:55]} 10. Ne5 {[%clk 0:02:55]}  Nc6 {[%clk 0:02:50]} 11. Bd2 {[%clk 0:02:54]}  Ba5 {[%clk 0:02:31]} 12. b3 {[%clk 0:02:41]}  cxb3 {[%clk 0:02:08]} 13. axb3 {[%clk 0:02:42]}  Bc7 {[%clk 0:02:04]} 14. Nxc6 {[%clk 0:02:29]}  bxc6 {[%clk 0:02:02]} 15. Na4 {[%clk 0:02:29]}  Ne4 {[%clk 0:01:44]} 16. Rc1 {[%clk 0:02:25]}  Bd7 {[%clk 0:01:38]} 17. Nc5 {[%clk 0:02:23]}  Nxc5 {[%clk 0:01:35]} 18. Rxc5 {[%clk 0:02:21]}  Bb6 {[%clk 0:01:28]} 19. Rc2 {[%clk 0:02:21]}  h6 {[%clk 0:01:15]} 20. Qa1 {[%clk 0:02:08]}  Ra7 {[%clk 0:01:08]} 21. Rfc1 {[%clk 0:02:07]}  Qa8 {[%clk 0:01:08]} 22. Ra2 {[%clk 0:01:06]}  Rb8 {[%clk 0:01:03]} 23. b4 {[%clk 0:01:00]}  Bc7 {[%clk 0:01:00]} 24. Bf1 {[%clk 0:00:59]}  Bd6 {[%clk 0:01:01]} 25. Rxa6 {[%clk 0:00:19]}  Rxa6 {[%clk 0:01:00]} 26. Qxa6 {[%clk 0:00:19]}  Qxa6 {[%clk 0:00:56]} 27. Bxa6 {[%clk 0:00:20]}  Bxb4 {[%clk 0:00:57]} 28. Rb1 {[%clk 0:00:20]}  Bd6 {[%clk 0:00:57]} 29. Rxb8+ {[%clk 0:00:20]}  Bxb8 {[%clk 0:00:58]} 30. Bb4 {[%clk 0:00:20]}  f6 {[%clk 0:00:39]} 31. Kf1 {[%clk 0:00:20]}  Kf7 {[%clk 0:00:39]} 32. Ke2 {[%clk 0:00:20]}  g6 {[%clk 0:00:38]} 33. h4 {[%clk 0:00:19]}  h5 {[%clk 0:00:36]} 34. Kd3 {[%clk 0:00:17]}  Ke6 {[%clk 0:00:35]} 35. Kc3 {[%clk 0:00:16]}  Bd6 {[%clk 0:00:35]} 36. Bd3 {[%clk 0:00:14]}  f5 {[%clk 0:00:27]} 37. Bxd6 {[%clk 0:00:14]}  Kxd6 {[%clk 0:00:28]} 38. Kb4 {[%clk 0:00:14]}  Bc8 {[%clk 0:00:23]} 39. Be2 {[%clk 0:00:15]}  Kc7 {[%clk 0:00:14]} 40. Kc5 {[%clk 0:00:14]}  Bd7 {[%clk 0:00:14]} 41. Bd1 {[%clk 0:00:14]}  Bc8 {[%clk 0:00:13]} 42. Ba4 {[%clk 0:00:14]}  Bb7 {[%clk 0:00:13]} 43. f3 {[%clk 0:00:14]}  Ba8 {[%clk 0:00:09]} 44. Bc2 {[%clk 0:00:12]}  Bb7 {[%clk 0:00:09]} 45. e4 {[%clk 0:00:12]}  dxe4 {[%clk 0:00:06]} 46. fxe4 {[%clk 0:00:13]}  Bc8 {[%clk 0:00:04]} 47. exf5 {[%clk 0:00:08]}  Bxf5 {[%clk 0:00:03]} 48. Bxf5 {[%clk 0:00:08]}  gxf5 {[%clk 0:00:03]} 49. d5 {[%clk 0:00:09]}  cxd5 {[%clk 0:00:02]} 50. Kxd5 {[%clk 0:00:10]}  Kd7 {[%clk 0:00:01]} 51. Ke5 {[%clk 0:00:10]}  Ke7 {[%clk 0:00:01]} 52. Kxf5 {[%clk 0:00:10]} 1-0


[Site "https://www.chess.com"]

[Event "Titled Tuesday Blitz January 03 Early 2023"]
[White "Klukin, Kirill"]
[Black "Ilinca Ilinca, Felix Antonio"]
[WhiteFideId "24199273"]
[BlackFideId "54764998"]
[WhiteElo "2390"]
[BlackElo "2266"]
[Result "1/2-1/2"]
[Round "02"]
[TimeControl "180+2"]
[Date "2023.01.03"]
[WhiteClock "0:00:18"]
[BlackClock "0:00:18"]

1. c4 {[%clk 0:03:00]}  Nf6 {[%clk 0:02:58]} 2. Nc3 {[%clk 0:03:00]}  c5 {[%clk 0:02:54]} 3. g3 {[%clk 0:02:58]}  e6 {[%clk 0:02:54]} 4. Nf3 {[%clk 0:02:56]}  d5 {[%clk 0:02:54]} 5. cxd5 {[%clk 0:02:57]}  exd5 {[%clk 0:02:54]} 6. d4 {[%clk 0:02:57]}  cxd4 {[%clk 0:02:54]} 7. Nxd4 {[%clk 0:02:57]}  Nc6 {[%clk 0:02:55]} 8. Bg2 {[%clk 0:02:57]}  Be7 {[%clk 0:02:55]} 9. O-O {[%clk 0:02:57]}  O-O {[%clk 0:02:54]} 10. Bg5 {[%clk 0:02:56]}  h6 {[%clk 0:02:54]} 11. Bf4 {[%clk 0:02:54]}  Be6 {[%clk 0:02:54]} 12. Rc1 {[%clk 0:02:53]}  Qd7 {[%clk 0:02:54]} 13. e4 {[%clk 0:02:41]}  dxe4 {[%clk 0:02:17]} 14. Nxc6 {[%clk 0:02:39]}  Qxc6 {[%clk 0:02:11]} 15. Nxe4 {[%clk 0:02:38]}  Qa6 {[%clk 0:02:11]} 16. Rc7 {[%clk 0:02:24]}  Rfd8 {[%clk 0:02:03]} 17. Qc1 {[%clk 0:02:08]}  Nd5 {[%clk 0:02:00]} 18. Rxe7 {[%clk 0:01:30]}  Nxe7 {[%clk 0:01:57]} 19. Nc5 {[%clk 0:01:31]}  Qxa2 {[%clk 0:01:38]} 20. Bxb7 {[%clk 0:01:20]}  Rac8 {[%clk 0:01:36]} 21. b4 {[%clk 0:00:53]}  Nd5 {[%clk 0:01:29]} 22. Bxc8 {[%clk 0:00:48]}  Rxc8 {[%clk 0:01:17]} 23. Qa1 {[%clk 0:00:48]}  Nxb4 {[%clk 0:01:14]} 24. Nxe6 {[%clk 0:00:46]}  Qxe6 {[%clk 0:01:13]} 25. Qxa7 {[%clk 0:00:44]}  Nd3 {[%clk 0:01:11]} 26. Qe3 {[%clk 0:00:32]}  Nxf4 {[%clk 0:01:08]} 27. Qxf4 {[%clk 0:00:32]}  Rc4 {[%clk 0:01:07]} 28. Qb8+ {[%clk 0:00:32]}  Rc8 {[%clk 0:01:04]} 29. Qb1 {[%clk 0:00:32]}  Re8 {[%clk 0:01:03]} 30. h4 {[%clk 0:00:32]}  Qg4 {[%clk 0:01:01]} 31. Qd3 {[%clk 0:00:32]}  Re6 {[%clk 0:00:58]} 32. Rc1 {[%clk 0:00:30]}  Re8 {[%clk 0:00:55]} 33. Qb5 {[%clk 0:00:29]}  Qe4 {[%clk 0:00:51]} 34. Qd7 {[%clk 0:00:27]}  Qe6 {[%clk 0:00:48]} 35. Qd2 {[%clk 0:00:26]}  Qe2 {[%clk 0:00:45]} 36. Qf4 {[%clk 0:00:26]}  Qe5 {[%clk 0:00:43]} 37. Qf3 {[%clk 0:00:21]}  Qe6 {[%clk 0:00:40]} 38. Kh2 {[%clk 0:00:19]}  Qe2 {[%clk 0:00:36]} 39. Qf4 {[%clk 0:00:19]}  Re6 {[%clk 0:00:27]} 40. Rc8+ {[%clk 0:00:19]}  Re8 {[%clk 0:00:23]} 41. Rc7 {[%clk 0:00:19]}  Re7 {[%clk 0:00:20]} 42. Rc8+ {[%clk 0:00:19]}  Re8 {[%clk 0:00:20]} 43. Rc3 {[%clk 0:00:20]}  Rf8 {[%clk 0:00:18]} 44. Re3 {[%clk 0:00:19]}  Qa6 {[%clk 0:00:18]} 45. Kg2 {[%clk 0:00:19]}  Qa8+ {[%clk 0:00:18]} 46. Kh2 {[%clk 0:00:20]}  Qa7 {[%clk 0:00:19]} 47. Qd6 {[%clk 0:00:19]}  Qa2 {[%clk 0:00:18]} 48. Rf3 {[%clk 0:00:19]}  Qa8 {[%clk 0:00:18]} 49. Qf4 {[%clk 0:00:19]}  Qb8 {[%clk 0:00:18]} 50. Qg4 {[%clk 0:00:19]}  Qc8 {[%clk 0:00:18]} 51. Qf4 {[%clk 0:00:17]}  Qc6 {[%clk 0:00:18]} 52. g4 {[%clk 0:00:17]}  Qg6 {[%clk 0:00:16]} 53. Kg3 {[%clk 0:00:17]}  f5 {[%clk 0:00:16]} 54. g5 {[%clk 0:00:12]}  hxg5 {[%clk 0:00:16]} 55. Qxg5 {[%clk 0:00:13]}  Qxg5+ {[%clk 0:00:16]} 56. hxg5 {[%clk 0:00:14]}  g6 {[%clk 0:00:17]} 57. Kf4 {[%clk 0:00:14]}  Re8 {[%clk 0:00:17]} 58. Re3 {[%clk 0:00:14]}  Ra8 {[%clk 0:00:16]} 59. Re6 {[%clk 0:00:14]}  Ra4+ {[%clk 0:00:15]} 60. Kf3 {[%clk 0:00:14]}  Kf7 {[%clk 0:00:15]} 61. Rf6+ {[%clk 0:00:15]}  Kg7 {[%clk 0:00:15]} 62. Rb6 {[%clk 0:00:15]}  Rg4 {[%clk 0:00:15]} 63. Rb7+ {[%clk 0:00:16]}  Kf8 {[%clk 0:00:16]} 64. Rb8+ {[%clk 0:00:16]}  Kf7 {[%clk 0:00:16]} 65. Rb7+ {[%clk 0:00:17]}  Kf8 {[%clk 0:00:17]} 66. Rb8+ {[%clk 0:00:18]}  Kf7 {[%clk 0:00:18]} 67. Rb7+ {[%clk 0:00:18]}  Kf8 {[%clk 0:00:18]} 1/2-1/2


[Site "https://www.chess.com"]

[Event "Titled Tuesday Blitz January 03 Early 2023"]
[White "Arabidze, Meri"]
[Black "Blokhin, Sofia"]
[WhiteFideId "13604040"]
[BlackFideId "4508190"]
[WhiteElo "2441"]
[BlackElo "2062"]
[Result "1-0"]
[Round "02"]
[TimeControl "180+2"]
[Date "2023.01.03"]
[WhiteClock "0:00:35"]
[BlackClock "0:00:04"]

1. Nf3 {[%clk 0:03:00]}  e6 {[%clk 0:02:58]} 2. b3 {[%clk 0:02:59]}  f5 {[%clk 0:02:57]} 3. Bb2 {[%clk 0:02:59]}  Nf6 {[%clk 0:02:58]} 4. g3 {[%clk 0:02:58]}  Be7 {[%clk 0:02:56]} 5. Bg2 {[%clk 0:02:59]}  O-O {[%clk 0:02:57]} 6. O-O {[%clk 0:02:59]}  d6 {[%clk 0:02:54]} 7. d4 {[%clk 0:02:59]}  Nc6 {[%clk 0:02:52]} 8. c4 {[%clk 0:02:59]}  Qe8 {[%clk 0:02:48]} 9. Nc3 {[%clk 0:02:59]}  Qh5 {[%clk 0:02:47]} 10. d5 {[%clk 0:02:46]}  Ne5 {[%clk 0:02:24]} 11. Nxe5 {[%clk 0:02:46]}  dxe5 {[%clk 0:02:22]} 12. Nb5 {[%clk 0:02:46]}  Bd8 {[%clk 0:02:13]} 13. d6 {[%clk 0:02:23]}  c6 {[%clk 0:02:06]} 14. Nc3 {[%clk 0:02:13]}  Bd7 {[%clk 0:02:00]} 15. e3 {[%clk 0:01:50]}  Qh6 {[%clk 0:01:44]} 16. h3 {[%clk 0:01:47]}  Nh5 {[%clk 0:01:25]} 17. Na4 {[%clk 0:01:41]}  b6 {[%clk 0:01:09]} 18. Bxe5 {[%clk 0:01:39]}  Bf6 {[%clk 0:01:05]} 19. Bxf6 {[%clk 0:01:39]}  Rxf6 {[%clk 0:01:02]} 20. c5 {[%clk 0:01:35]}  Rb8 {[%clk 0:00:56]} 21. b4 {[%clk 0:01:28]}  b5 {[%clk 0:00:31]} 22. Nc3 {[%clk 0:01:27]}  Nxg3 {[%clk 0:00:27]} 23. fxg3 {[%clk 0:01:08]}  Qxe3+ {[%clk 0:00:26]} 24. Kh2 {[%clk 0:01:08]}  Qxc3 {[%clk 0:00:26]} 25. a3 {[%clk 0:01:06]}  Rg6 {[%clk 0:00:24]} 26. Qf3 {[%clk 0:01:03]}  Qxf3 {[%clk 0:00:23]} 27. Bxf3 {[%clk 0:01:03]}  e5 {[%clk 0:00:23]} 28. g4 {[%clk 0:00:43]}  e4 {[%clk 0:00:13]} 29. gxf5 {[%clk 0:00:43]}  Bxf5 {[%clk 0:00:11]} 30. Bg2 {[%clk 0:00:44]}  Rf6 {[%clk 0:00:09]} 31. Rae1 {[%clk 0:00:44]}  a5 {[%clk 0:00:07]} 32. Bxe4 {[%clk 0:00:41]}  Bxe4 {[%clk 0:00:05]} 33. Rxf6 {[%clk 0:00:41]}  gxf6 {[%clk 0:00:06]} 34. Rxe4 {[%clk 0:00:42]}  axb4 {[%clk 0:00:06]} 35. axb4 {[%clk 0:00:43]}  Kf7 {[%clk 0:00:07]} 36. Re7+ {[%clk 0:00:43]}  Kf8 {[%clk 0:00:07]} 37. Rc7 {[%clk 0:00:43]}  f5 {[%clk 0:00:06]} 38. Rxc6 {[%clk 0:00:43]}  Re8 {[%clk 0:00:05]} 39. Rc7 {[%clk 0:00:38]}  Re4 {[%clk 0:00:05]} 40. d7 {[%clk 0:00:36]}  Ke7 {[%clk 0:00:05]} 41. c6 {[%clk 0:00:37]}  Rxb4 {[%clk 0:00:05]} 42. Rc8 {[%clk 0:00:36]}  Rd4 {[%clk 0:00:04]} 43. Re8+ {[%clk 0:00:37]}  Kf7 {[%clk 0:00:04]} 44. d8=Q {[%clk 0:00:35]} 1-0


[Site "https://www.chess.com"]